Cogmind - Beta 14 @@@ ROGUE MODE // 2024.08.22 @ 17:08:14 Player: Olafz Result: Destroyed by G-47 Trooper with Particle Gun Performance ------------- Evolutions (3) 1500 Regions Visited (7) 1400 Robots Destroyed (77) 385 Value Destroyed (2771) 2771 Prototype IDs (1) 20 Alien Tech Used (0) 0 Bonus (1548) 1548 TOTAL SCORE: 7624 Bonus ------- Pacifist 200 High Alert Combat Kills 157 Entered Garrisons 200 Used RIF Installer 1000 Friendly Fire -9 Cogmind --------- Core Integrity 0/700 Matter 203/300 Energy 150/150 System Corruption 8% Temperature Cool (27) Movement Walking (120) Location -7/Factory Parts ------- > --- POWER (1) -------- Micro Nuclear Core > --- PROPULSION (3) --- Improved Carbon-fiber Leg Improved Carbon-fiber Leg > --- UTILITY (7) ------ Improved Heat Sink Medium Storage Unit Improved Signal Interpreter Target Analyzer Armor Integrity Analyzer > --- WEAPON (2) ------- Flak Gun > --- INVENTORY (10) --- Light Nuclear Core Improved Titanium Leg Compact Matter Pod (150) ECM Suite Peak State ------------ > --- POWER ------------ Micro Fission Core > --- PROPULSION ------- Medium Armored Exoskeleton > --- UTILITY ---------- Cooling System Medium Storage Unit Improved Signal Interpreter Armor Integrity Analyzer Kinecellerator Improved Kinecellerator Improved Medium Armor Plating > --- WEAPON ----------- Minigun Bore Cannon > --- INVENTORY -------- Micro Nuclear Core Improved Carbon-fiber Leg Improved Carbon-fiber Leg Compact Matter Pod Minigun Minigun Hypervelocity Coil Gun Scythe Axe [Rating: 59] Favorites ----------- Power Micro Fission Core Engine Light Ion Engine Power Core Micro Fission Core Propulsion Aluminum Leg Leg Aluminum Leg Utility Medium Storage Unit Device Improved Kinecellerator Storage Medium Storage Unit Processor Improved Signal Interpreter Protection Improved Medium Armor Plating Weapon Minigun Ballistic Gun Minigun Ballistic Cannon Bore Cannon Slashing Weapon Axe Build | -11 -10 -10 -9 -8 -8 -8 -7 ------- Run | Yrd Mat Min Mat Mat Gar Mat Fac Slots Evolved 6 | . . . 2 2 . . 2 Power . | . . . . . . . . Propulsion 1 | . . . . 1 . . . Utility 5 | . . . 2 1 . . 2 Weapon . | . . . . . . . . Parts Attached 89 | 5 . . 5 15 36 4 24 Power 8 | 1 . . . 3 3 . 1 Engine 2 | 1 . . . 1 . . . Core 6 | . . . . 2 3 . 1 Reactor . | . . . . . . . . Propulsion 18 | 2 . . 1 6 6 . 3 Treads . | . . . . . . . . Leg 18 | 2 . . 1 6 6 . 3 Wheel . | . . . . . . . . Hover . | . . . . . . . . Flight . | . . . . . . . . Utility 26 | 1 . . 3 3 7 3 9 Device 12 | . . . 1 1 4 2 4 Storage 3 | 1 . . 1 . . . 1 Processor 4 | . . . . 1 1 1 1 Hackware . | . . . . . . . . Protection 7 | . . . 1 1 2 . 3 Artifact . | . . . . . . . . Weapon 37 | 1 . . 1 3 20 1 11 Energy Gun . | . . . . . . . . Energy Cannon . | . . . . . . . . Ballistic Gun 26 | 1 . . 1 3 15 1 5 Ballistic Cannon 5 | . . . . . 1 . 4 Launcher . | . . . . . . . . Special Weapon . | . . . . . . . . Impact Weapon . | . . . . . . . . Slashing Weapon 6 | . . . . . 4 . 2 Piercing Weapon . | . . . . . . . . Special Melee Weapon . | . . . . . . . . Unidentified Prototypes 1 | . . . . 1 . . . Corrupted Parts 1 | . . . . . 1 . . System Corruption 2 | . . . . . 2 . . Parts Lost 27 | . . . . 6 3 3 15 Power 4 | . . . . 2 1 . 1 Propulsion 5 | . . . . 2 1 . 2 Utility 10 | . . . . 1 1 3 5 Weapon 8 | . . . . 1 . . 7 Highest Loss Streak 5 | . . . . 2 1 2 5 To Critical Strikes . | . . . . . . . . Average Slot Usage (%) 80 | . 71 71 69 86 88 78 77 Engine 2 | . 14 14 11 4 . . . Core 6 | . . . . 4 9 9 6 Leg 15 | . 28 28 22 24 22 9 7 Device 12 | . . . 2 10 8 16 17 Storage 8 | . 14 14 11 9 9 9 7 Processor 11 | . . . . 1 14 10 15 Protection 6 | . . . 1 14 7 5 5 Ballistic Gun 12 | . 14 14 21 17 15 10 7 Ballistic Cannon 2 | . . . . . . 6 5 Peak Build Rating 59 | 5 5 5 12 23 53 53 59 Average Rating 35 | 3 5 5 7 16 29 50 52 On Entrance 18 | . 5 5 5 12 16 53 48 Naked Turns . | . . . . . . . . Heaviest Build 45 | 10 10 10 24 30 40 40 45 Greatest Support 54 | 20 20 20 23 35 50 50 54 Greatest Overweight (x) 1 | . . . 1 1 1 . . Average Overweight (x) . | . . . . . . . . Largest Inventory Capacity 10 | 8 8 8 10 10 10 10 10 Average Capacity 9 | 7 8 8 8 10 10 10 10 Most Carried 10 | 1 1 1 7 10 10 10 10 Average Carried 8 | . 1 1 2 8 9 9 8 Final Capacity 10 | 8 8 8 10 10 10 10 10 Final Carried 10 | 1 1 1 7 9 10 8 4 Class Distribution -------------------- 60% | Scavenger-Mutant 39% | Mutant Dominant Class ---------------- Mutant | -10/Materials Mutant | -10/Mines Mutant | -9/Materials Mutant | -8/Materials Scavenger-Mutant | -8/Garrison Mutant | -8/Materials Scavenger-Mutant | -7/Factory Resources | -11 -10 -10 -9 -8 -8 -8 -7 ----------- Run | Yrd Mat Min Mat Mat Gar Mat Fac Matter Collected 3319 | 149 . . 264 445 935 390 1136 Remotely . | . . . . . . . . Salvage Created 3131 | . . . 327 600 376 453 1375 Parts 175 | . . . 23 30 27 18 77 Haulers Intercepted 5 | . . . 2 1 . . 2 Recyclers Shooed 2 | . . . . 2 . . . Parts Field Recycled . | . . . . . . . . Retrieved Matter . | . . . . . . . . Parts Self-Destructed . | . . . . . . . . Prevented . | . . . . . . . . Kills | -11 -10 -10 -9 -8 -8 -8 -7 ------- Run | Yrd Mat Min Mat Mat Gar Mat Fac Combat Hostiles Destroyed 55 | . . . 7 10 8 6 24 Melee 7 | . . . . . . . 7 Guns 39 | . . . 7 10 8 3 11 Cannons 9 | . . . . . . 3 6 Classes Destroyed 14 | . . . 5 3 . 2 4 Worker 4 | . . . . . . . 4 Builder 6 | . . . 1 . . 1 4 Hauler 5 | . . . 2 1 . . 2 Recycler 4 | . . . . . . 2 2 Mechanic 1 | . . . . 1 . . . Watcher 2 | . . . . 1 1 . . Swarmer 9 | . . . 3 . 1 . 5 Grunt 23 | . . . 1 6 1 5 10 Brawler 1 | . . . . 1 . . . Duelist 1 | . . . . . . . 1 Sentry 15 | . . . 3 3 6 . 3 Hunter 1 | . . . . . . . 1 Programmer 4 | . . . . . . . 4 Heavy 1 | . . . . . . 1 . Best Kill Streak 7 | . . . 4 3 4 4 7 Combat Bots Only 4 | . . . 3 3 4 2 4 Max Kills in Single Turn 2 | . . . 1 1 1 1 2 Gunslinging . | . . . . . . . . Exploded . | . . . . . . . . Melee 1 | . . . . . . . 1 Uniques/NPCs Destroyed . | . . . . . . . . Combat | -11 -10 -10 -9 -8 -8 -8 -7 -------- Run | Yrd Mat Min Mat Mat Gar Mat Fac Hostile Shots Fired 573 | . . 1 28 115 39 53 337 Missed 177 | . . 1 10 43 13 9 101 Damage Taken 6636 | . 20 . 183 1116 613 1231 3473 Core 1184 | . 20 . 24 78 82 278 702 Absorbed by Shields . | . . . . . . . . Core Remaining (%) 76 | 100 . 92 94 . . 20 . Volleys Fired 265 | . . . 21 53 55 37 99 Largest 2 | . . . 2 2 2 2 2 Hottest 83 | . . . 43 46 60 82 83 Shots Fired 498 | . . . 42 102 104 69 181 Gun 406 | . . . 42 102 104 36 122 Cannon 92 | . . . . . . 33 59 Launcher . | . . . . . . . . Special . | . . . . . . . . Kinetic 498 | . . . 42 102 104 69 181 Thermal . | . . . . . . . . Explosive . | . . . . . . . . Electromagnetic . | . . . . . . . . Robot Hit Streak 11 | . . . 7 10 11 5 11 Robot Miss Streak 8 | . . . 8 5 3 5 6 Penetration Max 2 | . . . . . 1 . 2 Secondary Targets 4 | . . . 1 2 1 . . Max Gunslinging Chain 1 | . . . 1 1 1 . . Shots Hit Robots 285 | . . . 25 72 31 33 124 Core Hits 154 | . . . 20 36 19 15 64 Critical Kills 13 | . . . . 1 1 3 8 Critical Parts Destroyed 15 | . . . . . . 2 13 Critical Strikes 32 | . . . . 1 1 5 25 Destroy 29 | . . . . 1 1 5 22 Sever 3 | . . . . . . . 3 Melee Attacks 33 | . . . . . 8 . 25 Impact . | . . . . . . . . Slashing 33 | . . . . . 8 . 25 Piercing . | . . . . . . . . Sneak Attacks 1 | . . . . . . . 1 Combat Hostiles . | . . . . . . . . Follow-up Attacks . | . . . . . . . . Damage Inflicted 5797 | . . . 362 1115 502 621 3197 Guns 3696 | . . . 362 1115 493 321 1405 Cannons 1310 | . . . . . . 300 1010 Explosions 9 | . . . . . 9 . . Melee 761 | . . . . . . . 761 Ramming 21 | . . . . . . . 21 Kinetic 5006 | . . . 362 1115 493 621 2415 Thermal . | . . . . . . . . Explosive 9 | . . . . . 9 . . Electromagnetic . | . . . . . . . . Impact . | . . . . . . . . Slashing 761 | . . . . . . . 761 Piercing . | . . . . . . . . Highest Corruption 8 | . . . . . 2 2 8 Average Corruption 2 | . . . . . 2 2 3 Corruption Purged . | . . . . . . . . Corruption Blocked . | . . . . . . . . Effects 45 | . . . . . 22 6 17 Message Errors 6 | . . . . . 4 2 . Matter Fused 12 | . . . . . 7 1 4 Heat Flow Errors 2 | . . . . . 1 . 1 Energy Discharges 5 | . . . . . 2 2 1 Parts Rejected 3 | . . . . . 1 . 2 Parts Fused 2 | . . . . . 1 . 1 Data Loss (minor) 8 | . . . . . 2 1 5 Data Loss (major) 3 | . . . . . 2 . 1 Misfires 1 | . . . . . 1 . . Alerts 2 | . . . . . 1 . 1 Weapon Failures 1 | . . . . . . . 1 Overload Shots . | . . . . . . . . Overflow Damage 101 | . . . . . 40 . 61 Projectiles . | . . . . . . . . Explosions 40 | . . . . . 40 . . Melee 61 | . . . . . . . 61 Knockbacks 13 | . . . . . . 1 12 Impact 1 | . . . . . . . 1 Kinetic 10 | . . . . . . 1 9 Secondary 2 | . . . . . . . 2 Self-Inflicted Damage 218 | . . . . . 139 . 79 Shots 2 | . . . . . 1 . 1 Rammed . | . . . . . . . . Targets Rammed 8 | . . . . 1 . . 7 Kicked 8 | . . . . 1 . . 7 Crushed . | . . . . . . . . Highest Temperature 602 | . . . 23 167 222 602 83 Average Temperature 130 | . . . 11 86 34 329 14 Received Heat Transfer 1968 | . . . 36 558 144 288 942 Effects 17 | . . . . . . 17 . Shutdowns 3 | . . . . . . 3 . Energy Bleed 2 | . . . . . . 2 . Interference 5 | . . . . . . 5 . Matter Decay 2 | . . . . . . 2 . Short Circuit 1 | . . . . . . 1 . Damage (minor) 2 | . . . . . . 2 . Damage (major) 1 | . . . . . . 1 . Damage (core) 1 | . . . . . . 1 . Siege Activations . | . . . . . . . . Robots Corrupted . | . . . . . . . . Combat Hostiles . | . . . . . . . . Parts Fried . | . . . . . . . . Impact Corruptions . | . . . . . . . . Robots Melted . | . . . . . . . . Combat Hostiles . | . . . . . . . . Parts Melted . | . . . . . . . . Heat Transferred . | . . . . . . . . Parts Sabotaged . | . . . . . . . . Parts Stolen . | . . . . . . . . Parts Stripped . | . . . . . . . . Power Chain Reactions . | . . . . . . . . Alert | -11 -10 -10 -9 -8 -8 -8 -7 ------- Run | Yrd Mat Min Mat Mat Gar Mat Fac Peak Influence 632 | . . 30 282 338 632 572 410 Initial 308 | . . . 11 118 153 308 175 Average 218 | . . 3 123 178 330 385 154 Maximum Alert Level 2 | . . . 1 1 2 2 2 Low Security (%) 53 | 100 100 100 61 69 32 . 70 Level 1 31 | . . . 38 30 24 73 28 Level 2 14 | . . . . . 43 26 . Level 3 . | . . . . . . . . Level 4 . | . . . . . . . . Level 5 . | . . . . . . . . High Security . | . . . . . . . . Max Security . | . . . . . . . . Squads Dispatched 13 | . . . 2 3 . 2 6 Investigation . | . . . . . . . . Extermination 2 | . . . . . . . 2 Reinforcement 6 | . . . 2 1 . 2 1 Assault . | . . . . . . . . Garrison 5 | . . . . 2 . . 3 Intercept . | . . . . . . . . Searches Triggered . | . . . . . . . . Construction Impeded . | . . . . . . . . Haulers Reinforced . | . . . . . . . . Active Scanning Responses . | . . . . . . . . Cargo Convoy Interrupts 1 | . . . . . . . 1 Stealth | -11 -10 -10 -9 -8 -8 -8 -7 --------- Run | Yrd Mat Min Mat Mat Gar Mat Fac Distress Signals 4 | . . . . 1 1 1 1 Communications Jammed . | . . . . . . . . Distress Signals . | . . . . . . . . Times Spotted 116 | . 1 2 13 24 16 10 50 Peak Tracking Total 12 | . 1 2 3 7 4 4 12 Tactical Retreats 11 | . . 1 1 2 . 4 3 Traps | -11 -10 -10 -9 -8 -8 -8 -7 ------- Run | Yrd Mat Min Mat Mat Gar Mat Fac Traps Triggered 4 | . 1 . . . 2 . 1 Indirectly . | . . . . . . . . Trap Hack Attempts . | . . . . . . . . Triggered . | . . . . . . . . Disarmed . | . . . . . . . . Reprogrammed . | . . . . . . . . Reused . | . . . . . . . . Traps Extracted . | . . . . . . . . Installed . | . . . . . . . . Triggered . | . . . . . . . . Machines | -11 -10 -10 -9 -8 -8 -8 -7 ---------- Run | Yrd Mat Min Mat Mat Gar Mat Fac Machines Disabled 7 | . . . . . 2 2 3 Max in Single Turn 2 | . . . . . 2 1 1 Phase Generator 1 | . . . . . 1 . . Machines Repaired . | . . . . . . . . Machines Dismantled . | . . . . . . . . Machines Sabotaged . | . . . . . . . . Overloaded Fab Kills . | . . . . . . . . Hacking | -11 -10 -10 -9 -8 -8 -8 -7 --------- Run | Yrd Mat Min Mat Mat Gar Mat Fac Machines Accessed 5 | . . . . 2 2 . 1 Terminals 3 | . . . . 1 2 . . Fabricators 1 | . . . . . . . 1 Repair Stations . | . . . . . . . . Recycling Units . | . . . . . . . . Scanalyzers . | . . . . . . . . Garrison Access 1 | . . . . 1 . . . Total Hacks 7 | . . . . 4 2 . 1 Successful 4 | . . . . 2 1 . 1 Failed 3 | . . . . 2 1 . . Catastrophic 1 | . . . . . 1 . . Database Lockouts . | . . . . . . . . Manual 3 | . . . . 3 . . . Terminals 5 | . . . . 3 2 . . Fabricators 1 | . . . . . . . 1 Repair Stations . | . . . . . . . . Recycling Units . | . . . . . . . . Scanalyzers . | . . . . . . . . Garrison Access 1 | . . . . 1 . . . Terminal Hacks 1 | . . . . . 1 . . Garrison Registry 1 | . . . . . 1 . . Fabricator Hacks 1 | . . . . . . . 1 Network Status 1 | . . . . . . . 1 Repair Station Hacks . | . . . . . . . . Recycling Unit Hacks . | . . . . . . . . Scanalyzer . | . . . . . . . . Garrison Access Hacks 1 | . . . . 1 . . . Unlock Access 1 | . . . . 1 . . . Unauthorized Hacks 1 | . . . . 1 . . . Terminals 1 | . . . . 1 . . . Botnet 1 | . . . . 1 . . . Fabricators . | . . . . . . . . Repair Stations . | . . . . . . . . Recycling Units . | . . . . . . . . Scanalyzers . | . . . . . . . . Garrison Access . | . . . . . . . . Data Cores Recovered . | . . . . . . . . Used . | . . . . . . . . Hacking Detections 2 | . . . . . 2 . . Full Trace Events . | . . . . . . . . Feedback Events . | . . . . . . . . Feedback Blocked . | . . . . . . . . Robot Schematics Acquired . | . . . . . . . . Robots Built . | . . . . . . . . Authchips . | . . . . . . . . Time . | . . . . . . . . Total Robot Build Rating . | . . . . . . . . Part Schematics Acquired . | . . . . . . . . Parts Built . | . . . . . . . . Authchips . | . . . . . . . . Time . | . . . . . . . . Total Part Build Rating . | . . . . . . . . Parts Repaired . | . . . . . . . . Time . | . . . . . . . . Parts Recycled . | . . . . . . . . Recycled Matter . | . . . . . . . . Retrieved Matter . | . . . . . . . . Retrieved Components . | . . . . . . . . Parts Scanalyzed . | . . . . . . . . Part Schematics Acquired . | . . . . . . . . Parts Damaged . | . . . . . . . . Bothacking | -11 -10 -10 -9 -8 -8 -8 -7 ------------ Run | Yrd Mat Min Mat Mat Gar Mat Fac Used RIF Installer 2 | . . . . . 2 . . Watcher Feeds 1 | . . . . . 1 . . Robots Hacked . | . . . . . . . . Non-combat . | . . . . . . . . Combat . | . . . . . . . . Robot Hacks Applied . | . . . . . . . . Relay Couplers Released . | . . . . . . . . Fabnet Peak Effective % . | . . . . . . . . Robots Rewired . | . . . . . . . . Allies Hacked . | . . . . . . . . Hacks Repelled . | . . . . . . . . Allies | -11 -10 -10 -9 -8 -8 -8 -7 -------- Run | Yrd Mat Min Mat Mat Gar Mat Fac Total Allies . | . . . . . . . . Largest Group . | . . . . . . . . Highest-Rated Group . | . . . . . . . . Highest-Rated Ally . | . . . . . . . . Total Orders . | . . . . . . . . Ally Attacks . | . . . . . . . . Total Damage . | . . . . . . . . Kills . | . . . . . . . . Allies Corrupted . | . . . . . . . . Allies Melted . | . . . . . . . . Intel | -11 -10 -10 -9 -8 -8 -8 -7 ------- Run | Yrd Mat Min Mat Mat Gar Mat Fac Robot Analysis Total . | . . . . . . . . Derelict Logs Recovered 1 | . . 1 . . . . . Drone Launches . | . . . . . . . . Drone Recoveries . | . . . . . . . . Exploration | -11 -10 -10 -9 -8 -8 -8 -7 ------------- Run | Yrd Mat Min Mat Mat Gar Mat Fac Turns Passed 4453 | 47 92 92 360 523 1195 466 1678 Spaces Moved 2491 | 35 77 72 221 212 758 210 906 Core 4 | 4 . . . . . . . Treads . | . . . . . . . . Legs 2487 | 31 77 72 221 212 758 210 906 Wheels . | . . . . . . . . Hover . | . . . . . . . . Flight . | . . . . . . . . Fastest Speed 50 | 50 120 120 120 120 120 140 120 Average Speed 132 | 112 120 120 125 144 125 140 139 Slowest Speed 190 | 120 120 120 190 190 190 140 140 Overloaded Moves . | . . . . . . . . Propulsion Burnouts . | . . . . . . . . Robots Hopped . | . . . . . . . . Cave-ins Triggered . | . . . . . . . . Exploration Rate (%) 28 | 4 28 20 27 19 82 25 24 Regions Visited 7 Branch Regions 1 Pre-discovered Areas . | . . . . . . . . Known Exits Taken 2 | . . . . 1 . 1 . Unknown Exits Taken 4 | 1 1 1 1 . . . . Scrap Searched . | . . . . . . . . Spaces Dug 3 | . . . . . . . 3 Terrain Destroyed 172 | . . . . . 75 24 73 Melee . | . . . . . . . . Projectile 47 | . . . . . . 24 23 AOE 125 | . . . . . 75 . 50 Terrain Rammed . | . . . . . . . . Walls Destroyed . | . . . . . . . . Machines Disabled . | . . . . . . . . Actions | -11 -10 -10 -9 -8 -8 -8 -7 --------- Run | Yrd Mat Min Mat Mat Gar Mat Fac Total 3122 | 40 76 77 261 326 902 323 1117 Wait 149 | . . 6 10 28 7 70 28 Move 2484 | 34 76 71 220 212 756 209 906 Hop . | . . . . . . . . Pick Up 42 | 1 . . 4 9 12 1 15 Fast Attach 34 | 5 . . 4 5 11 2 7 Attach 24 | . . . . 5 3 2 14 Detach 5 | . . . 1 1 1 . 2 Swap 31 | . . . 1 5 22 . 3 Drop 43 | . . . . 8 22 2 11 Fire 265 | . . . 21 53 55 37 99 Melee 33 | . . . . . 8 . 25 Ram . | . . . . . . . . Kick 7 | . . . . . . . 7 Crush . | . . . . . . . . Escape Stasis 5 | . . . . . 5 . . Rewire . | . . . . . . . . Trap . | . . . . . . . . Miscellaneous . | . . . . . . . . Route ------- -11/Scrapyard -10/Materials -10/Mines -9/Materials -8/Materials -8/Garrison (discovered 3 exits: *Mat x3) -8/Materials -7/Factory History --------- Turn | Location | Event 3 | -11/Scrapyard | Discovered new exit (range 15) 48 | -11/Scrapyard | Entered Materials 112 | -10/Materials | Discovered new exit (range 16) 140 | -10/Materials | Entered Mines 145 | -10/Mines | Learned Materials terminal intel 159 | -10/Mines | Met a Derelict bent on vengeance 216 | -10/Mines | Discovered new exit (range 14) 232 | -10/Mines | Entered Materials 232 | -9/Materials | Evolved 2 slots: Utility x2 233 | -9/Materials | Loaded intel: 12 terminal locations 303 | -9/Materials | Build established: Mutant 539 | -9/Materials | Discovered new exit (range 16) 592 | -9/Materials | Entered another Materials area 592 | -8/Materials | Evolved 2 slots: Propulsion x1, Utility x1 922 | -8/Materials | Garrison activated, responded to threat 1107 | -8/Materials | Garrison activated, responded to threat 1114 | -8/Materials | Identified exit to Garrison 1115 | -8/Materials | Entered Garrison 1115 | -8/Garrison | Warlord forces raided the area 1132 | -8/Garrison | P-60 Hacker assimilated allied IM-ZQ9(s) 1170 | -8/Garrison | Installed Relay Interface Framework 1182 | -8/Garrison | Lost 4 allies 1224 | -8/Garrison | Build established: Scavenger-Mutant 1287 | -8/Garrison | Triggered checkpoint 1339 | -8/Garrison | Triggered checkpoint 1357 | -8/Garrison | Triggered checkpoint 1407 | -8/Garrison | Triggered checkpoint 1481 | -8/Garrison | Triggered checkpoint 1563 | -8/Garrison | Triggered checkpoint 1619 | -8/Garrison | Triggered checkpoint 1673 | -8/Garrison | Triggered checkpoint 1709 | -8/Garrison | Discovered new exit (range 13) 1724 | -8/Garrison | Identified exit to Materials 1788 | -8/Garrison | Phase Generator disabled 1896 | -8/Garrison | Discovered exit to Materials (range 35) 1896 | -8/Garrison | Discovered exit to Materials (range 25) 1896 | -8/Garrison | Discovered exit to Materials (range 67) 1942 | -8/Garrison | Warlord forces retreated 2181 | -8/Garrison | Expanded RIF knowledge: Watcher Feeds 2310 | -8/Garrison | Entered Materials 2510 | -8/Materials | Build established: Mutant 2623 | -8/Materials | Core integrity fell below 50% 2735 | -8/Materials | Discovered new exit (range 10) 2774 | -8/Materials | Identified exit to Factory 2776 | -8/Materials | Entered Factory 2776 | -7/Factory | Evolved 2 slots: Utility x2 2972 | -7/Factory | Build established: Scavenger-Mutant 4021 | -7/Factory | Garrison activated, responded to threat 4268 | -7/Factory | Core integrity fell below 50% 4384 | -7/Factory | Lost 5 parts (1p1n2u1w) 4387 | -7/Factory | Build established: Mutant 4415 | -7/Factory | Cargo convoy interrupted 4427 | -7/Factory | Core integrity fell below 20% 4454 | -7/Factory | Destroyed by G-47 Trooper with Particle Gun Last Messages --------------- Slug penetrates Wall. M-13 Machinist repairs Shock Rifle. System corrupted: Component data lost. Slug penetrates P-60 Hacker. Critical hit (Burn: +37). Imp. Carbon-fiber Leg destroyed. P-60 Hacker destroyed. Slug penetrates Wall. Gauss Cannon destroyed. K-01 Serf collects debris. ALERT: Rogue bot located, Programmers report to Factory Zone 3W. Slug penetrates Wall. K-01 Serf collects debris. Slug penetrates Wall. Penetrated by Slug. R-06 Scavenger collects Sml. Matter Pod. H-55 Commando destroyed. Slug penetrates Wall. R-06 Scavenger collects Imp. Heat Sink. Critical hit (Burn: +37). Map ----- +----------------------------------------------------+ | ?????????????????????????????????????????????????? | | ?????????????????????????????????????????????????? | | ?????????????????????????????????????????????????? | | ?????????????????????????????????????????????????? | | ?????????????????????????????????????????????????? | | ?????????????????????????????????????????????????? | | ?????????????????????????????????????????????????? | | ?????????????????????????????????????????????????? | | ?????????????????????????????????????????????????? | | ?????????????????????????????????????????????????? | | ?????????????????????????????????????????????????? | | ?????????????????????????????????????????????????? | | ?????????????????????????????????????????????????? | | ?????????????????????????????????????????????????? | | ?????????????????????????????????????????????????? | | ?????????????????????????????????????????????????? | | ?????????????????????????????????????????????????? | | ?????????????????????????????????????????????????? | | ?????????????????????????????????????????????????? | | ?????????????????????????????????????????????????? | | ?????????????????????????????????????????????????? | | ?????????????????????????????????????????????????? | | ?????????????????????????????????????????????????? | | ?????????????????????? ?????????????????????????? | | ?????????????????? ######/####??????????????? | | ??????????????????? #@ g #??????????????? | | ???????????????????? # =[ #??????????????? | | ????????????????###?# # p*|%!%#??????????????? | | ???????????????? = # # =mmr[*##????????? #??? | | ??????????????? # ######r########### #??? | | ?????????????????"" + * %%%% ! "%% #??? | | ????????????????????# %%! %= " #??? | | ????????????????????# !% = #??? | | ????????????????????# = % #??? | | ????????????????????# % #??? | | ????????????????????# % #??? | | ????????????????????# ############+####??? | | ????????????????????# ##?????????????????? | | ????????????????????# #??????????????????? | | ????????????????????# #??????????????????? | | ????????????????????# #??????????????????? | | ????????????????????# #??????????????????? | | ###########?????????# #??????????????????? | | # #????????## #??????????????????? | | # ! ########## ######?????????????? | | # !! + +?????????????? | | # !! #### ##### ###############????? | | + """ #??# #???###== ## #????? | | # """ #??# #?????#=**=!* ## #????? | | # """ #??# #??####![[= =! + #????? | +----------------------------------------------------+ Best States ------------- Heat Dissipation 56 Energy Generation 15 Energy Capacity 250 Matter Stores 300 Matter Capacity 300 Sight Range 16 Robot Scan Range 15 Terrain Scan Density 10 ECM Strength 1 Armor Coverage 450 Weapon Cycling 15 Evasion (%) 55 Melee Accuracy 5 Target Analysis 5 Armor Integrity Analysis 30 Kinecelleration 40 Item Schematics ----------------- None Robot Schematics ------------------ None Fabricated ------------ Nothing Alien Tech Used ----------------- None Achievements -------------- None Challenges ------------ None Game ------ Seed TractorThermalCompactor Manual? 0 Play Time 00:46:36 Cumulative 239.9 hours Start 2024.08.22 @ 16:01:19 End 2024.08.22 @ 17:08:14 Sessions 1 Manual Loads 0 Difficulty Rogue Special Mode None Game No. 421 Rogue 419 Adventurer 2 Explorer 0 Win Type - Total 10 Types 8/0/0/2/0/0/0/0/0 Lore% 73 Gallery% 68 Achievement% 56 Wizard Run 0 Options --------- Layout 0 ASCII 0 Keyboard 1 Movement Numpad Keybinds 1 Fullscreen 2 Font 18/SmallcapsGlow Map View 76x50 Zoom Use 0% Tactical HUD 1 Map Filters NONE Filters NONE Steam 1 RUN: 47ffdec4-a61b-4fc4-9986-bde2b49ec259